fUSD/lending_fUSD_20251129
["ID","MTS","AMOUNT","RATE_DAILY","PERIOD"]
[395110080,1764444648910,-184.79730938,0.00016521,2]
[395110081,1764444648921,-1000.0,0.00016521,2]
[395110082,1764444648931,-425.05260677,0.00016539,2]
[395110083,1764444648941,-3952.8290681,0.00016557,2]
[395110084,1764444648951,-300.0,0.00016566,2]
[395110085,1764444648961,-300.0,0.00016566,2]
[395110086,1764444648971,-500.0,0.00016567,2]
[395110087,1764444648981,-500.0,0.00016567,2]
[395110088,1764444648991,-500.0,0.00016567,2]
[395110089,1764444649001,-500.0,0.00016567,2]
[395110090,1764444649012,-500.0,0.00016567,2]
[395110091,1764444649022,-500.0,0.00016567,2]
[395110092,1764444649032,-500.0,0.00016567,2]
[395110093,1764444649043,-500.0,0.00016567,2]
[395110094,1764444649053,-500.0,0.00016567,2]
[395110095,1764444649062,-500.0,0.00016567,2]
[395110096,1764444649072,-500.0,0.00016567,2]
[395110097,1764444649082,-500.0,0.00016567,2]
[395110098,1764444649092,-500.0,0.00016567,2]
[395110099,1764444649101,-500.0,0.00016567,2]
[395110100,1764444649111,-500.0,0.00016567,2]
[395110101,1764444649125,-500.0,0.00016567,2]
[395110102,1764444649135,-500.0,0.00016567,2]
[395110103,1764444649145,-500.0,0.00016567,2]
[395110104,1764444649155,-500.0,0.00016567,2]
[395110105,1764444649166,-500.0,0.00016567,2]
[395110106,1764444649176,-500.0,0.00016567,2]
[395110107,1764444649185,-500.0,0.00016567,2]
[395110108,1764444649195,-500.0,0.00016567,2]
[395110109,1764444649206,-500.0,0.00016567,2]
[395110110,1764444649215,-500.0,0.00016567,2]
[395110111,1764444649225,-500.0,0.00016567,2]
[395110112,1764444649235,-500.0,0.00016567,2]
[395110113,1764444649245,-500.0,0.00016567,2]
[395110114,1764444649255,-500.0,0.00016567,2]
[395110115,1764444649265,-500.0,0.00016567,2]
[395110116,1764444649274,-500.0,0.00016567,2]
[395110117,1764444649284,-500.0,0.00016567,2]
[395110118,1764444649294,-500.0,0.00016567,2]
[395110119,1764444649304,-500.0,0.00016567,2]
[395110120,1764444649314,-500.0,0.00016567,2]
[395110121,1764444649324,-500.0,0.00016567,2]
[395110122,1764444649334,-500.0,0.00016567,2]
[395110123,1764444649344,-500.0,0.00016567,2]
[395110124,1764444649354,-500.0,0.00016567,2]
[395110125,1764444649364,-512.0,0.00016567,2]
[395110126,1764444649374,-150.0,0.00016575,2]
[395110127,1764444649384,-166.66,0.00016579,2]
[395110128,1764444649394,-7358.64178323,0.000166,2]
[395110129,1764444649404,-6010.374305,0.00016605,2]
[395110130,1764444649414,-542.4301008,0.00016631,2]
[395110131,1764444649424,-797.0,0.00016633,2]
[395110132,1764444649435,-419.0,0.00016633,2]
[395110133,1764444649446,-464.0,0.00016633,2]
[395110134,1764444649456,-150.0,0.00016647,2]
[395110135,1764444649466,-300.0,0.00016684,2]
[395110136,1764444649475,-150.0,0.00016703,2]
[395110137,1764444649485,-150.0,0.00016703,2]
[395110138,1764444649495,-150.0,0.00016703,2]
[395110139,1764444649506,-150.0,0.00016712,2]
[395110140,1764444649516,-150.0,0.00016744,2]
[395110141,1764444649527,-479.66,0.00016754,2]
[395110142,1764444649538,-479.66,0.00016754,2]
[395110143,1764444649548,-13496.4132212,0.00016767,2]
[395110144,1764444649559,-797.0,0.0001677,2]
[395110145,1764444649570,-419.0,0.0001677,2]
[395110146,1764444649580,-464.0,0.0001677,2]
[395110147,1764444649590,-176.65372314,0.0001679,2]
[395110148,1764444649600,-287.06863924,0.000168,2]
[395110149,1764444649610,-150.0,0.00016849,2]
[395110150,1764444649621,-287.06863924,0.00016865,2]
[395110151,1764444649630,-6010.374305,0.000169,2]
[395110152,1764444649641,-2192.64623084,0.000169,2]
[395110153,1764444649651,-7358.64178323,0.000169,2]
[395110154,1764444649661,-197.02240292,0.000169,2]
[395110155,1764444649671,-731.0154688,0.000169,2]
[395110156,1764444649682,-616.17287015,0.000169,2]
[395110157,1764444649692,-500.0,0.000169,2]
[395110158,1764444649702,-500.0,0.000169,2]
[395110159,1764444649715,-500.0,0.000169,2]
[395110160,1764444649724,-500.0,0.000169,2]
[395110161,1764444649734,-500.0,0.000169,2]
[395110162,1764444649745,-500.0,0.000169,2]
[395110163,1764444649755,-500.0,0.000169,2]
[395110164,1764444649765,-500.0,0.000169,2]
[395110165,1764444649775,-500.0,0.000169,2]
[395110166,1764444649785,-500.0,0.000169,2]
[395110167,1764444649795,-500.0,0.000169,2]
[395110168,1764444649805,-500.0,0.000169,2]
[395110169,1764444649815,-500.0,0.000169,2]
[395110170,1764444649824,-500.0,0.000169,2]
[395110171,1764444649835,-500.0,0.000169,2]
[395110172,1764444649845,-500.0,0.000169,2]
[395110173,1764444649854,-192.37994214,0.000169,2]
[395110174,1764444649864,-731.01546876,0.00016906,2]
[395110175,1764444649874,-616.17287012,0.00016906,2]
[395110176,1764444649885,-797.0,0.00016907,2]
[395110177,1764444649895,-419.0,0.00016907,2]
[395110178,1764444649905,-464.0,0.00016907,2]
[395110179,1764444649915,-731.01546876,0.00016912,2]
[395110180,1764444649925,-616.17287012,0.00016912,2]
[395110181,1764444649935,-731.01546876,0.00016917,2]
[395110182,1764444649945,-616.17287012,0.00016917,2]
[395110183,1764444649955,-731.01546876,0.00016923,2]
[395110184,1764444649966,-425.05260677,0.00016929,2]
[395110185,1764444649976,-287.06863924,0.00016929,2]
[395110186,1764444649986,-731.01546876,0.00016929,2]
[395110187,1764444649996,-300.0,0.00016972,2]
[395110188,1764444650007,-501.68270719,0.00016973,2]
[395110189,1764444650017,-161.98179923,0.00016973,2]
[395110190,1764444650027,-500.0,0.00016973,2]
[395110191,1764444650038,-500.0,0.00016973,2]
[395110192,1764444650048,-507.05784267,0.00016973,2]
[395110193,1764444650058,-500.0,0.00016973,2]
[395110194,1764444650068,-500.0,0.00016973,2]
[395110195,1764444650079,-500.0,0.00016973,2]
[395110196,1764444650089,-500.0,0.00016973,2]
[395110197,1764444650100,-500.0,0.00016973,2]
[395110198,1764444650110,-500.0,0.00016973,2]
[395110199,1764444650118,-500.0,0.00016973,2]
[395110200,1764444650127,-500.0,0.00016973,2]
[395110201,1764444650137,-231.63969334,0.00016973,2]
[395110202,1764444650147,-500.0,0.00016973,2]
[395110203,1764444650156,-500.0,0.00016973,2]
[395110204,1764444650166,-503.08797881,0.00016973,2]
[395110205,1764444650176,-500.0,0.00016973,2]
[395110206,1764444650186,-500.0,0.00016973,2]
[395110207,1764444650196,-500.0,0.00016973,2]
[395110208,1764444650206,-500.0,0.00016973,2]
[395110209,1764444650216,-167.29393494,0.00016973,2]
[395110210,1764444650226,-500.0,0.00016973,2]
[395110211,1764444650236,-500.0,0.00016973,2]
[395110212,1764444650246,-176.33851761,0.00016973,2]
[395110213,1764444650256,-500.0,0.00016973,2]
[395110214,1764444650267,-500.0,0.00016973,2]
[395110215,1764444650277,-500.0,0.00016973,2]
[395110216,1764444650287,-500.0,0.00016973,2]
[395110217,1764444650297,-415.30385931,0.00016973,2]
[395110218,1764444650307,-500.0,0.00016973,2]
[395110219,1764444650317,-186.88026511,0.00016973,2]
[395110220,1764444650327,-500.0,0.00016973,2]
[395110221,1764444650337,-500.0,0.00016973,2]
[395110222,1764444650347,-500.0,0.00016973,2]
[395110223,1764444650357,-500.0,0.00016973,2]
[395110224,1764444650368,-500.0,0.00016973,2]
[395110225,1764444650378,-500.0,0.00016973,2]
[395110226,1764444650388,-500.0,0.00016973,2]
[395110227,1764444650400,-500.0,0.00016973,2]
[395110228,1764444650410,-500.0,0.00016973,2]
[395110229,1764444650420,-500.0,0.00016973,2]
[395110230,1764444650430,-500.0,0.00016973,2]
[395110231,1764444650441,-172.72143704,0.00016983,7]
[395110232,1764444650454,-200.0,0.00016986,2]
[395110233,1764444650464,-150.0,0.00016986,2]
[395110234,1764444650474,-150.0,0.00016986,2]
[395110235,1764444650484,-286.23034224,0.00016986,2]
[395110236,1764444650494,-159.50313578,0.00016986,2]
[395110237,1764444650503,-159.34174515,0.00016986,2]
[395110238,1764444650513,-150.0,0.00016986,2]
[395110239,1764444650523,-150.0,0.00016986,2]
[395110240,1764444650533,-150.00000001,0.00016986,2]
[395110241,1764444650543,-263.26519719,0.00016986,2]
[395110242,1764444650552,-1000.0,0.00016996,2]
[395110243,1764444650562,-297.64259009,0.00016999,2]
[395110244,1764444650572,-500543.1374422,0.00017,2]
[395110245,1764444650583,-582625.80411093,0.00017,2]
[395110246,1764444650593,-160.0,0.00017,2]
[395110247,1764444650603,-5163.71723957,0.00017,3]
[395110248,1764444650615,-497.8516638,0.00017,2]
[395110249,1764444650625,-2241394.47406662,0.00017,2]
[395110250,1764444650635,-269585.95132592,0.00017,2]
[395110251,1764444650649,-949620.18653242,0.00017,2]
[395110252,1764444652125,-10490.99234095,0.00017,2]
[395110253,1764444652163,-392.96395412,0.00016923,2]
[395110254,1764444652518,760.2064,0.000142,2]
[395110255,1764444652572,-500.0,0.00014536,2]
[395110256,1764444652583,-500.0,0.00014673,2]
[395110257,1764444652593,-500.0,0.0001481,2]
[395110258,1764444652604,-500.0,0.00014947,2]
[395110259,1764444652614,-500.0,0.00015084,2]
[395110260,1764444652624,-500.0,0.00015221,2]
[395110261,1764444652634,-500.0,0.00015358,2]
[395110262,1764444652644,-230.46264169,0.00015495,2]
[395110263,1764444652661,-269.53735831,0.00015495,2]
[395110264,1764444652675,-277.4474373,0.00015632,2]
[395110265,1764444652685,-349.04888573,0.00015973,2]
[395110266,1764444652716,-150.0,0.00014399,2]
[395110267,1764444652727,-150.95111427,0.00015973,2]
[395110268,1764444652737,-1000.0,0.00016521,2]
[395110269,1764444652934,-223.208916,0.00016923,2]
[395110270,1764444652944,-616.17287012,0.00016929,2]
[395110271,1764444652954,-3313.57988611,0.00017,2]
[395110272,1764444652989,-409.39459988,0.00017,2]
[395110273,1764444653461,-150.0,0.00014399,2]
[395110274,1764444653472,-8971.79999995,0.00017,2]
[395110275,1764444653484,-349.0,0.00017,2]
[395110276,1764444653785,-40876.05553811,0.00017,2]
[395110277,1764444653798,-7100.0,0.00017,2]
[395110278,1764444653870,-378.32078194,0.000159,2]
[395110279,1764444653880,-620.67921806,0.00017,2]
[395110333,1764444768723,1881.1618167,0.00014197,2]
[395110334,1764444768749,10000.01,0.00014197,2]
[395110335,1764444768776,10000.01,0.00014197,2]
[395110336,1764444768802,10000.01,0.00014197,2]
[395110337,1764444768827,10000.01,0.00014197,2]
[395110338,1764444768855,10000.01,0.00014197,2]
[395110339,1764444768880,10000.01,0.00014197,2]
[395110340,1764444768905,10000.01,0.00014197,2]
[395110341,1764444768931,10000.01,0.00014197,2]
[395110342,1764444768955,10000.01,0.00014197,2]
[395110343,1764444768982,596626.41330408,0.00014197,2]
[395110344,1764444781454,-7640.69031321,0.00014197,2]
[395110345,1764444781565,-10000.01,0.00014197,2]
[395110346,1764444781690,-3280.60043399,0.00014197,2]
[395110347,1764444781714,-3438.80913202,0.00014197,2]
[395110348,1764444793431,-1000.0,0.000142,2]
[395110349,1764444793460,-1436.8259,0.000142,2]
[395110350,1764444796331,5126.3582,0.000142,2]
[395110351,1764444796353,10000.01,0.000142,2]
[395110352,1764444796380,4970.4391,0.000142,2]
[395110353,1764444802731,2500.0,0.000142,2]
[395110355,1764444889165,1319.34,0.000142,2]
[395110356,1764444916006,8680.67,0.00014197,2]
[395110357,1764444916036,10000.01,0.00014197,2]
[395110358,1764444916063,10000.01,0.00014197,2]
[395110359,1764444916091,10000.01,0.00014197,2]
[395110360,1764444916115,10000.01,0.00014197,2]
[395110361,1764444916141,10000.01,0.00014197,2]
[395110362,1764444916166,10000.01,0.00014197,2]
[395110363,1764444916191,10000.01,0.00014197,2]
[395110364,1764444916217,10000.01,0.00014197,2]
[395110365,1764444916241,10000.01,0.00014197,2]
[395110366,1764444933198,-319.34,0.00014197,2]
[395110367,1764444973315,182.67,0.00019178,30]
[395110380,1764445144870,184.61086334,0.00014198,2]
[395110522,1764445699507,-1200.0,0.00014295,2]
[395110525,1764445714620,-300.0,0.00014296,2]
[395110526,1764445714649,-300.0,0.00014296,2]
[395110530,1764445730090,-205.0,0.00014297,2]
[395110533,1764445746463,-1200.0,0.00014298,2]
[395110534,1764445746492,-150.0,0.00014298,2]
[395110535,1764445746526,-300.0,0.00014298,2]
[395110537,1764445760974,-250.0,0.00014299,2]
[395110540,1764445776416,-500.0,0.00014299,2]
[395110541,1764445776444,-500.0,0.00014299,2]
[395110542,1764445776471,-182.23056781,0.00014299,2]
[395110543,1764445776498,-500.0,0.00014299,2]
[395110544,1764445776525,-500.0,0.00014299,2]
[395110545,1764445776551,-550.0,0.00014299,2]
[395110546,1764445776578,-500.0,0.00014299,2]
[395110547,1764445776605,-500.0,0.00014299,2]
[395110548,1764445776633,-500.0,0.00014299,2]
[395110549,1764445776660,-500.0,0.00014299,2]
[395110550,1764445776688,-35.54886438,0.00014299,2]
[395110551,1764445776788,-464.45113562,0.00014299,2]
[395110552,1764445776816,-500.0,0.00014299,2]
[395110553,1764445776843,-500.0,0.00014299,2]
[395110554,1764445776871,-500.0,0.00014299,2]
[395110555,1764445776899,-500.0,0.00014299,2]
[395110559,1764445795178,-513.09178011,0.0001444,2]
[395110560,1764445795206,-554.18165703,0.0001444,2]
[395110561,1764445795236,-500.0,0.0001444,2]
[395110562,1764445795264,-500.0,0.0001444,2]
[395110565,1764445810832,-207.0,0.00014516,2]
[395110574,1764445832142,-195.0,0.00014516,2]
[395110575,1764445832152,-250.0,0.00014516,2]
[395110576,1764445832162,-150.0,0.00014516,2]
[395110577,1764445832172,-500.0,0.0001452,2]
[395110578,1764445832181,-500.0,0.0001452,2]
[395110580,1764445832191,-280.2,0.00014563,2]
[395110582,1764445832200,-2751.0,0.00014593,2]
[395110583,1764445832211,-1200.0,0.00014858,2]
[395110584,1764445832220,-1781.93232917,0.00014859,2]
[395110592,1764445832554,-250.18730255,0.00014859,2]
[395110604,1764445838479,-631.24279818,0.00014859,2]
[395110605,1764445838499,-848.13666422,0.00014859,2]
[395110606,1764445838510,-250.0,0.00014935,2]
[395110607,1764445838519,-300.0,0.00014949,2]
[395110608,1764445838529,-267.46074303,0.0001495,2]
[395110609,1764445838539,-1000.0,0.0001495,2]
[395110610,1764445838548,-500.0,0.0001495,2]
[395110611,1764445838557,-300.0,0.0001495,2]
[395110612,1764445838566,-278.27776217,0.0001495,2]
[395110613,1764445838576,-151.0,0.0001495,2]
[395110614,1764445838584,-151.0,0.0001495,2]
[395110615,1764445838593,-151.0,0.0001495,2]
[395110616,1764445838603,-151.0,0.0001495,2]
[395110617,1764445838611,-208.66655759,0.0001495,2]
[395110619,1764445838621,-1000.0,0.0001495,2]
[395110620,1764445838632,-1000.0,0.0001495,2]
[395110621,1764445838641,-1000.0,0.0001495,2]
[395110622,1764445838651,-1000.0,0.0001495,2]
[395110623,1764445838659,-1146.07216141,0.0001495,2]
[395110624,1764445838668,-500.0,0.00014955,2]
[395110625,1764445838678,-500.0,0.00014955,2]
[395110626,1764445838689,-283.59208982,0.00014955,2]
[395110627,1764445838700,-500.0,0.00014955,2]
[395110628,1764445838709,-500.0,0.00014955,2]
[395110629,1764445838719,-500.0,0.00014955,2]
[395110630,1764445838729,-500.0,0.00014955,2]
[395110631,1764445838739,-500.0,0.00014955,2]
[395110632,1764445838748,-500.0,0.00014955,2]
[395110633,1764445838757,-500.0,0.00014955,2]
[395110634,1764445838766,-500.0,0.00014955,2]
[395110635,1764445838775,-500.0,0.00014955,2]
[395110636,1764445838785,-500.0,0.00014955,2]
[395110637,1764445838794,-500.0,0.00014955,2]
[395110638,1764445838803,-500.0,0.00014955,2]
[395110639,1764445838813,-500.0,0.00014955,2]
[395110640,1764445838823,-500.0,0.00014955,2]
[395110641,1764445838832,-500.0,0.00014955,2]
[395110642,1764445838842,-500.0,0.00014955,2]
[395110643,1764445838851,-500.0,0.00014955,2]
[395110644,1764445838861,-500.0,0.00014955,2]
[395110645,1764445838871,-500.0,0.00014955,2]
[395110646,1764445838880,-500.0,0.00014955,2]
[395110647,1764445838889,-500.0,0.00014955,2]
[395110648,1764445838899,-500.0,0.00014955,2]
[395110649,1764445838909,-500.0,0.00014955,2]
[395110650,1764445838919,-500.0,0.00014955,2]
[395110651,1764445838929,-500.0,0.00014955,2]
[395110652,1764445838939,-500.0,0.00014955,2]
[395110653,1764445838948,-500.0,0.00014955,2]
[395110654,1764445838958,-500.0,0.00014955,2]
[395110655,1764445838968,-500.0,0.00014955,2]
[395110656,1764445838978,-500.0,0.00014955,2]
[395110657,1764445838987,-500.0,0.00014955,2]
[395110658,1764445838997,-500.0,0.00014955,2]
[395110659,1764445839007,-500.0,0.00014955,2]
[395110660,1764445839017,-434.49993311,0.00014955,2]
[395110661,1764445839026,-500.0,0.00014955,2]
[395110662,1764445839036,-500.0,0.00014955,2]
[395110663,1764445839046,-500.0,0.00014955,2]
[395110664,1764445839056,-500.0,0.00014955,2]
[395110665,1764445839065,-500.0,0.00014955,2]
[395110666,1764445839074,-500.0,0.00014955,2]
[395110667,1764445839084,-500.0,0.00014955,2]
[395110668,1764445839094,-500.0,0.00014955,2]
[395110669,1764445839108,-805.93,0.00014956,2]
[395110670,1764445839117,-151.14582097,0.00014958,2]
[395110671,1764445839126,-500.0,0.00014958,2]
[395110672,1764445839136,-342.62680262,0.00014958,2]
[395110673,1764445839145,-500.0,0.00014958,2]
[395110674,1764445839155,-607.89006918,0.00014958,2]
[395110675,1764445839164,-159.74,0.00014959,2]
[395110676,1764445839174,-1595.45,0.00014959,2]
[395110677,1764445839183,-31822.44627363,0.00014959,2]
[395110678,1764445839196,-52800.91372637,0.00014959,2]
[395110679,1764445839205,-150.99,0.00014959,2]
[395110680,1764445839214,-150.99,0.00014959,2]
[395110681,1764445839223,-299.99,0.00014959,2]
[395110682,1764445839233,-9999.99,0.00014959,2]
[395110683,1764445839242,-999.99,0.00014959,2]
[395110684,1764445839252,-6214.9,0.00014959,2]
[395110685,1764445839260,-9999.99,0.00014959,2]
[395110686,1764445839270,-3511.49909403,0.00015086,2]
[395110687,1764445839279,-805.93,0.0001523,2]
[395110688,1764445839287,-1349.84,0.00015248,2]
[395110689,1764445839297,-150.0,0.00015288,2]
[395110690,1764445839306,-150.0,0.00015288,2]
[395110691,1764445839316,-150.0,0.00015288,2]
[395110692,1764445839325,-150.0,0.00015288,2]
[395110693,1764445839334,-150.0,0.00015288,2]
[395110694,1764445839344,-150.0,0.00015288,2]
[395110695,1764445839353,-150.0,0.00015288,2]
[395110696,1764445839363,-150.0,0.00015288,2]
[395110697,1764445839372,-150.0,0.00015288,2]
[395110698,1764445839381,-3511.49909403,0.00015313,2]
[395110699,1764445839390,-255.0,0.00015428,2]
[395110700,1764445839398,-1000.0,0.00015498,2]
[395110701,1764445839408,-597.09424157,0.00015498,2]
[395110702,1764445839418,-164.72,0.00015502,2]
[395110703,1764445839428,-805.93,0.00015504,2]
[395110704,1764445839439,-283.14,0.00015533,2]
[395110705,1764445839448,-3511.49909403,0.00015539,2]
[395110706,1764445839458,-1000.0,0.00015567,2]
[395110707,1764445839468,-166.66,0.00015645,2]
[395110708,1764445839478,-899.0,0.0001566,2]
[395110709,1764445839487,-150.0,0.00015712,2]
[395110710,1764445839497,-250.0,0.00015728,2]
[395110711,1764445839508,-157.89,0.0001576,2]
[395110712,1764445839518,-3511.49909403,0.00015766,2]
[395110713,1764445839876,-805.93,0.00015778,2]
[395110714,1764445839886,-150.0,0.00015854,2]
[395110715,1764445839895,-150.0,0.00015854,2]
[395110716,1764445839905,-150.0,0.00015854,2]
[395110717,1764445839914,-150.0,0.00015854,2]
[395110718,1764445839924,-348.44961849,0.000159,2]
[395110719,1764445839933,-348.44961847,0.000159,2]
[395110720,1764445839942,-348.44961847,0.000159,2]
[395110721,1764445839951,-348.44961847,0.000159,2]
[395110722,1764445839960,-432.0,0.00015948,2]
[395110723,1764445839970,-150.0,0.00015948,2]
[395110724,1764445839980,-500.0,0.00015948,2]
[395110725,1764445839989,-2486.0,0.00015948,2]
[395110726,1764445839998,-924.5,0.00015959,2]
[395110727,1764445840007,-150.32875877,0.00015968,2]
[395110728,1764445840018,-195.0,0.00015968,2]
[395110729,1764445840027,-193.0,0.00015968,2]
[395110730,1764445840036,-250.0,0.00015968,2]
[395110731,1764445840046,-300.0,0.00015968,2]
[395110732,1764445840057,-500.0,0.00015973,2]
[395110733,1764445840067,-500.0,0.00015973,2]
[395110734,1764445840077,-500.0,0.00015973,2]
[395110735,1764445840087,-500.0,0.00015973,2]
[395110736,1764445840098,-500.0,0.00015973,2]
[395110737,1764445840109,-500.0,0.00015973,2]
[395110738,1764445840119,-498.38723624,0.00015973,2]
[395110740,1764445840129,-500.0,0.00015973,2]
[395110741,1764445840138,-500.71814226,0.00015973,2]
[395110742,1764445840148,-500.0,0.00015973,2]
[395110743,1764445840159,-500.0,0.00015973,2]
[395110744,1764445840168,-500.0,0.00015973,2]
[395110745,1764445840179,-315.71495663,0.00015973,2]
[395110746,1764445840188,-500.0,0.00015973,2]
[395110747,1764445840198,-159.99691032,0.00015973,2]
[395110748,1764445840207,-494.11980425,0.00015973,2]
[395110749,1764445840217,-500.0,0.00015973,2]
[395110750,1764445840226,-500.0,0.00015973,2]
[395110751,1764445840235,-500.0,0.00015973,2]
[395110752,1764445840244,-608.18810239,0.00015973,2]
[395110753,1764445840254,-500.0,0.00015973,2]
[395110754,1764445840263,-500.0,0.00015973,2]
[395110755,1764445840272,-501.65327585,0.00015973,2]
[395110756,1764445840281,-500.0,0.00015973,2]
[395110757,1764445840291,-500.0,0.00015973,2]
[395110758,1764445840301,-3511.49909403,0.00015993,2]
[395110759,1764445840310,-159.74,0.00016027,2]
[395110760,1764445840320,-1000.0,0.00016046,2]
[395110761,1764445840330,-805.93,0.00016052,2]
[395110762,1764445840340,-959.32,0.00016055,2]
[395110763,1764445840349,-9732.0413,0.00016057,2]
[395110764,1764445840360,-432.0,0.00016085,2]
[395110765,1764445840369,-269.0,0.00016085,2]
[395110766,1764445840378,-500.0,0.00016085,2]
[395110767,1764445840387,-300.0,0.00016105,2]
[395110768,1764445840397,-1700.7756,0.0001611,2]
[395110769,1764445840407,-150.0,0.00016137,2]
[395110770,1764445840416,-150.0,0.00016137,2]
[395110771,1764445840427,-11476.6,0.00016158,2]
[395110772,1764445840435,-166.66,0.00016161,2]
[395110773,1764445840444,-3511.49909403,0.0001622,2]
[395110774,1764445840454,-432.0,0.00016222,2]
[395110775,1764445840463,-500.0,0.00016222,2]
[395110776,1764445840473,-277.35679052,0.00016319,2]
[395110777,1764445840481,-311.1,0.00016319,2]
[395110778,1764445840491,-805.98,0.00016326,2]
[395110779,1764445840500,-1680.0,0.00016344,2]
[395110780,1764445840509,-432.0,0.00016359,2]
[395110781,1764445840518,-500.0,0.00016359,2]
[395110782,1764445840528,-420.0,0.00016361,2]
[395110783,1764445840536,-222.0,0.00016404,2]
[395110784,1764445840546,-4168.35,0.00016409,2]
[395110785,1764445840556,-500.0,0.00016419,2]
[395110786,1764445840565,-450.0,0.00016419,2]
[395110787,1764445840574,-62362.0137,0.00016419,2]
[395110788,1764445840583,-150.0,0.0001642,2]
[395110789,1764445840593,-150.0,0.0001642,2]
[395110790,1764445840602,-150.0,0.0001642,2]
[395110791,1764445840612,-150.0,0.0001642,2]
[395110792,1764445840621,-427.45964135,0.00016434,2]
[395110793,1764445840630,-1936.252,0.00016438,2]
[395110794,1764445840639,-152.884,0.00016438,2]
[395110795,1764445840649,-500.0,0.00016438,2]
[395110796,1764445840658,-500.0,0.00016438,2]
[395110797,1764445840667,-500.0,0.00016438,2]
[395110799,1764445840676,-358.29477948,0.00016438,2]
[395110800,1764445840685,-500.0,0.00016438,2]
[395110801,1764445840695,-500.0,0.00016438,2]
[395110802,1764445840706,-500.0,0.00016438,2]
[395110803,1764445840715,-500.0,0.00016438,2]
[395110804,1764445840725,-500.0,0.00016438,2]
[395110805,1764445840734,-500.0,0.00016438,2]
[395110806,1764445840743,-500.0,0.00016438,2]
[395110807,1764445840752,-500.0,0.00016438,2]
[395110808,1764445840762,-500.0,0.00016438,2]
[395110809,1764445840771,-800.0,0.00016438,2]
[395110810,1764445840780,-3511.49909403,0.00016446,2]
[395110811,1764445840789,-222.0,0.00016448,2]
[395110812,1764445840799,-432.0,0.00016496,2]
[395110813,1764445840807,-500.0,0.00016496,2]
[395110814,1764445840816,-150.0,0.00016519,2]
[395110815,1764445840826,-184.79730938,0.00016521,2]
[395110816,1764445840835,-500.0,0.00016521,2]
[395110817,1764445840844,-1000.0,0.00016521,2]
[395110818,1764445840854,-1000.0,0.00016521,2]
[395110819,1764445840863,-415.8000054,0.00016521,2]
[395110820,1764445840873,-1000.0,0.00016521,2]
[395110821,1764445840882,-1000.0,0.00016521,2]
[395110822,1764445840891,-1000.0,0.00016521,2]
[395110823,1764445840900,-1000.0,0.00016521,2]
[395110824,1764445840909,-388.73685916,0.00016521,2]
[395110825,1764445840918,-500.0,0.00016521,2]
[395110826,1764445840927,-1000.0,0.00016521,2]
[395110827,1764445840936,-222.0,0.00016535,2]
[395110828,1764445840946,-150.0,0.00016562,2]
[395110829,1764445840955,-1000.0,0.00016594,2]
[395110830,1764445840964,-542.4301008,0.00016599,2]
[395110831,1764445840973,-222.0,0.0001662,2]
[395110832,1764445840982,-222.0,0.0001662,2]